bitfinex/quotes_SOLUSD_20250317
["timestamp","ask_amount","ask_price","bid_price","bid_amount"]
[1742219804294,17.82075104,127.66,127.63,80.8]
[1742219804469,25.65415104,127.66,127.63,80.8]
[1742219804900,17.82075104,127.65,127.63,80.8]
[1742219805065,17.82075104,127.64,127.63,80.8]
[1742219805387,17.82075104,127.65,127.63,80.863]
[1742219805587,17.82075104,127.66,127.63,7.898]
[1742219805795,45.65365104,127.67,127.63,7.898]
[1742219805996,20.0,127.67,127.63,7.898]
[1742219806295,20.0,127.67,127.63,25.71875104]
[1742219806993,20.0,127.67,127.63,45.30655104]
[1742219807201,20.0,127.67,127.63,27.4858]
[1742219807386,20.0,127.67,127.63,45.30655104]
[1742219807998,20.0,127.67,127.63,7.898]
[1742219808182,37.82075104,127.67,127.63,0.063]
[1742219808380,17.82075104,127.65,127.63,0.063]
[1742219808887,17.82075104,127.64,127.63,0.063]
[1742219809896,27.8328,127.67,127.63,0.063]
[1742219810080,17.82075104,127.66,127.63,0.063]
[1742219811311,17.82075104,127.65,127.63,0.063]
[1742219811802,17.82075104,127.66,127.63,0.063]
[1742219812004,20.0,127.67,127.63,0.063]
[1742219812211,20.0,127.67,127.63,17.88375104]
[1742219813008,37.82075104,127.67,127.63,0.063]
[1742219814005,17.82075104,127.66,127.63,0.063]
[1742219814182,17.82075104,127.64,127.63,0.063]
[1742219815097,17.82075104,127.65,127.63,0.063]
[1742219815507,20.0,127.67,127.63,0.063]
[1742219816604,17.82075104,127.66,127.63,0.063]
[1742219816807,17.82075104,127.65,127.63,0.063]
[1742219817710,17.82075104,127.64,127.63,0.063]
[1742219818009,17.82075104,127.65,127.63,0.063]
[1742219818717,20.0,127.67,127.63,0.063]
[1742219820484,37.82075104,127.67,127.63,0.063]
[1742219820986,20.0,127.67,127.63,0.063]
[1742219821193,0.03,127.68,127.66,17.82075104]
[1742219821407,0.03,127.68,127.67,7.68]
[1742219822598,0.03,127.68,127.67,15.5126]
[1742219823192,0.03,127.68,127.67,7.68]
[1742219824115,17.85075104,127.68,127.67,7.68]
[1742219824300,0.03,127.68,127.67,7.68]
[1742219824689,0.03,127.68,127.67,15.5126]
[1742219825089,17.85075104,127.68,127.67,7.68]
[1742219825312,17.85075104,127.68,127.63,0.063]
[1742219825512,17.82075104,127.65,127.63,0.063]
[1742219825714,17.82075104,127.66,127.63,7.898]
[1742219825897,37.82075104,127.67,127.63,7.898]
[1742219826096,37.82075104,127.67,127.63,25.71875104]
[1742219826097,20.0,127.67,127.63,25.71875104]
[1742219826308,20.0,127.67,127.63,7.898]
[1742219826813,17.85075104,127.68,127.63,25.71875104]
[1742219827013,17.85075104,127.68,127.63,126.10655104]
[1742219827202,20.0,127.67,127.63,126.10655104]
[1742219828694,0.03,127.68,127.64,17.82075104]
[1742219828912,17.85075104,127.68,127.63,126.10655104]
[1742219829235,0.03,127.68,127.63,126.10655104]
[1742219830534,17.82075104,127.67,127.63,88.698]
[1742219830732,17.82075104,127.66,127.63,88.698]
[1742219831229,20.03,127.68,127.63,106.51875104]
[1742219831425,20.03,127.68,127.64,17.82075104]
[1742219832119,4.68234613,127.67,127.64,17.82075104]
[1742219832557,4.68234613,127.67,127.65,25.65465104]
[1742219832735,4.68234613,127.67,127.66,25.50075104]
[1742219833707,4.68234613,127.67,127.66,33.33405104]
[1742219834616,4.68234613,127.67,127.66,15.5133]
[1742219834816,4.68234613,127.67,127.66,33.33405104]
[1742219835023,4.68234613,127.67,127.66,114.13405104]
[1742219835734,4.68234613,127.67,127.66,88.48]
[1742219836142,4.68234613,127.67,127.66,96.3133]
[1742219837823,4.68234613,127.67,127.66,88.48]
[1742219838236,4.68234613,127.67,127.66,96.3133]
[1742219838645,4.68234613,127.67,127.66,114.13405104]
[1742219841241,4.71234613,127.67,127.66,114.13405104]
[1742219842125,4.71234613,127.67,127.66,133.06802304]
[1742219842620,4.71234613,127.67,127.66,114.13405104]
[1742219844737,4.613e-05,127.67,127.66,448.56147401]
[1742219844925,4.613e-05,127.67,127.66,453.32384618]
[1742219846259,4.613e-05,127.67,127.66,435.218772]
[1742219846419,4.613e-05,127.67,127.66,97.9564]
[1742219846620,4.613e-05,127.67,127.66,96.3133]
[1742219848248,4.613e-05,127.67,127.66,114.13405104]
[1742219848428,4.613e-05,127.67,127.66,96.3133]
[1742219849022,4.613e-05,127.67,127.66,114.13405104]
[1742219849338,4.613e-05,127.67,127.66,133.06802304]
[1742219851548,4.613e-05,127.67,127.66,96.3133]
[1742219852145,4.613e-05,127.67,127.64,106.45465104]
[1742219852356,4.613e-05,127.67,127.65,7.68]
[1742219853543,4.613e-05,127.67,127.65,15.5134]
[1742219853853,4.613e-05,127.67,127.65,7.8334]
[1742219854047,4.613e-05,127.67,127.65,15.5134]
[1742219856155,4.613e-05,127.67,127.65,33.33415104]
[1742219856535,4.613e-05,127.67,127.65,15.5134]
[1742219858543,17.82075104,127.65,127.63,0.063]
[1742219859759,17.82075104,127.66,127.63,0.063]
[1742219859943,4.613e-05,127.67,127.63,0.063]
[1742219860130,17.82079717,127.67,127.63,0.063]
[1742219860754,17.82075104,127.66,127.63,0.063]
[1742219863835,37.82079717,127.67,127.63,0.063]
[1742219866058,17.82075104,127.66,127.63,0.063]
[1742219866394,37.82079717,127.67,127.63,0.063]
[1742219866679,4.613e-05,127.67,127.64,17.82075104]
[1742219871363,4.613e-05,127.67,127.66,25.65405104]
[1742219871680,4.613e-05,127.67,127.66,7.8333]
[1742219872460,4.613e-05,127.67,127.66,25.65405104]
[1742219873387,4.613e-05,127.67,127.66,7.8333]
[1742219873686,4.613e-05,127.67,127.63,7.743]
[1742219873687,17.82079717,127.67,127.63,0.063]
[1742219873905,17.82075104,127.64,127.63,0.063]
[1742219874501,17.82075104,127.65,127.63,0.063]
[1742219875081,6.36364613,127.67,127.63,0.063]
[1742219875082,24.18439717,127.67,127.63,0.063]
[1742219875284,4.613e-05,127.67,127.63,17.88375104]
[1742219875488,4.613e-05,127.67,127.64,7.68]
[1742219875797,17.82079717,127.67,127.64,7.68]
[1742219876085,17.82075104,127.66,127.64,7.68]
[1742219876394,17.82075104,127.65,127.63,0.063]
[1742219876600,7.83274613,127.67,127.63,0.063]
[1742219876779,17.82075104,127.65,127.63,0.063]
[1742219877087,20.0,127.66,127.63,0.063]
[1742219877389,17.82075104,127.65,127.63,0.063]
[1742219880184,37.82075104,127.66,127.63,0.063]
[1742219881091,20.0,127.66,127.63,0.063]
[1742219882180,20.0,127.66,127.63,7.8981]
[1742219882494,17.82075104,127.64,127.63,0.063]
[1742219882665,19.65327418,127.64,127.63,0.063]
[1742219883689,38.58724618,127.64,127.63,0.063]
[1742219884281,46.769672,127.62,127.61,0.063]
[1742219884485,82.69549722,127.62,127.61,0.063]
[1742219884793,0.28432314,127.61,127.59,0.03]
[1742219885115,43.12514618,127.6,127.59,0.03]
[1742219885688,24.19117418,127.6,127.59,0.03]
[1742219885988,20.0,127.6,127.59,0.03]
[1742219886292,37.82075104,127.6,127.59,0.03]
[1742219888497,22.38012314,127.63,127.59,0.03]
[1742219888498,6.5805,127.63,127.59,0.03]
[1742219888676,20.0,127.62,127.59,0.03]
[1742219888992,17.82075104,127.63,127.59,0.03]
[1742219890092,17.82075104,127.65,127.59,25.53075104]
[1742219890293,8.03186927,127.67,127.61,17.82075104]
[1742219890294,7.74754613,127.67,127.61,17.82075104]
[1742219890501,4.613e-05,127.67,127.63,17.82075104]
[1742219890798,4.613e-05,127.67,127.64,7.8345]
[1742219890995,4.613e-05,127.67,127.64,27.4208]
[1742219891374,4.613e-05,127.67,127.64,45.24155104]
[1742219891593,4.613e-05,127.67,127.65,17.82075104]
[1742219892496,4.613e-05,127.67,127.66,17.82075104]
[1742219892695,4.613e-05,127.67,127.66,25.65405104]
[1742219892899,4.613e-05,127.67,127.66,106.45405104]
[1742219894986,4.613e-05,127.67,127.65,7.8334]
[1742219895795,4.613e-05,127.67,127.64,400.6344]
[1742219895993,4.613e-05,127.67,127.64,98.62075104]
[1742219896498,4.613e-05,127.67,127.65,17.82075104]
[1742219897202,4.613e-05,127.67,127.64,17.82075104]
[1742219897385,17.82079717,127.67,127.62,106.45625104]
[1742219897584,17.82079717,127.67,127.63,7.68]
[1742219897793,4.613e-05,127.67,127.63,25.50075104]
[1742219898496,17.82079717,127.67,127.63,7.68]
[1742219898796,17.82075104,127.66,127.63,7.68]
[1742219899601,17.82079717,127.67,127.63,7.68]
[1742219900203,25.65349717,127.67,127.63,7.68]
[1742219900404,17.82075104,127.65,127.6,80.8]
[1742219900702,17.82075104,127.65,127.62,7.66]
[1742219901403,25.65465104,127.65,127.62,7.66]
[1742219901590,17.82075104,127.64,127.62,7.66]
[1742219901979,17.82075104,127.64,127.61,0.063]
[1742219902399,17.82075104,127.63,127.61,0.063]
[1742219902986,25.65645104,127.62,127.61,0.063]
[1742219903193,25.79861261,127.62,127.61,0.063]
[1742219903393,25.94077418,127.62,127.61,0.063]
[1742219904184,44.87474618,127.62,127.61,0.063]
[1742219905186,0.28432314,127.6,127.59,0.03]
[1742219905500,18.10507418,127.6,127.59,0.03]
[1742219906405,37.03904618,127.6,127.59,0.03]
[1742219907284,17.96291261,127.6,127.59,0.03]
[1742219908503,18.10507418,127.6,127.59,0.03]
[1742219908819,44.87594618,127.6,127.59,0.03]
[1742219909114,55.59739683,127.6,127.59,0.03]
[1742219909909,47.76049683,127.6,127.59,0.03]
[1742219910118,28.68436326,127.6,127.59,0.03]
[1742219910914,28.82652483,127.6,127.59,0.03]
[1742219911294,28.54220169,127.6,127.59,0.03]
[1742219911505,28.68436326,127.6,127.59,0.03]
[1742219912301,28.54220169,127.61,127.59,0.03]
[1742219912513,0.28432314,127.62,127.59,0.03]
[1742219912514,28.68436326,127.62,127.59,0.03]
[1742219912715,28.54220169,127.61,127.59,0.03]
[1742219913221,28.68436326,127.6,127.59,0.03]
[1742219913512,28.54220169,127.6,127.59,0.03]
[1742219914192,28.82652483,127.6,127.59,0.03]
[1742219915318,36.66342483,127.6,127.59,0.03]
[1742219915918,28.82652483,127.6,127.59,0.03]
[1742219916098,0.28432314,127.6,127.59,0.03]
[1742219916296,28.54220169,127.6,127.59,0.03]
[1742219916499,0.14216157,127.62,127.59,0.03]
[1742219916500,28.54220169,127.61,127.59,0.03]
[1742219917217,0.14216157,127.6,127.59,0.03]
[1742219917514,28.82652483,127.6,127.59,0.03]
[1742219917719,36.66342483,127.6,127.59,0.03]
[1742219918595,55.59739683,127.6,127.59,0.03]
[1742219919320,0.28432314,127.59,127.58,0.063]
[1742219919519,49.32249683,127.59,127.58,0.063]
[1742219919821,57.16009683,127.59,127.58,0.063]
[1742219921817,38.22612483,127.59,127.58,0.063]
[1742219922116,55.31377369,127.59,127.58,0.063]
[1742219922509,55.59809683,127.59,127.58,0.063]
[1742219922710,55.45593526,127.59,127.58,0.063]
[1742219923423,28.82652483,127.59,127.58,0.063]
[1742219924326,207.36,127.6,127.58,0.063]
[1742219924517,26.48434886,127.64,127.58,0.063]
[1742219924719,28.54220169,127.62,127.58,7.723]
[1742219924920,28.54220169,127.63,127.58,36.26520169]
[1742219925104,235.41264886,127.66,127.59,28.54220169]
[1742219925105,28.54220169,127.64,127.59,28.54220169]
[1742219925306,28.54220169,127.62,127.58,7.723]
[1742219925508,48.54220169,127.63,127.58,44.10290169]
[1742219925904,20.0,127.63,127.59,28.54220169]
[1742219926520,28.54220169,127.65,127.6,28.54220169]
[1742219926922,28.54220169,127.64,127.59,109.34220169]
[1742219927821,28.54220169,127.63,127.59,88.6374]
[1742219928123,28.54220169,127.64,127.59,117.17960169]
[1742219931627,28.54220169,127.62,127.58,15.5609]
[1742219932727,28.82652483,127.65,127.59,28.54220169]
[1742219933123,18.10192543,127.65,127.59,17.81760229]
[1742219933310,17.81760229,127.64,127.59,17.81760229]
[1742219934238,17.81760229,127.64,127.6,7.8369]
[1742219934730,17.81760229,127.65,127.6,32.01480229]
[1742219935027,17.81760229,127.65,127.6,51.60720229]
[1742219935206,17.81760229,127.65,127.6,33.7896]
[1742219935824,17.81760229,127.65,127.6,51.60720229]
[1742219936507,17.81760229,127.66,127.61,17.81760229]
[1742219936706,0.063,127.65,127.62,7.66]
[1742219936908,0.063,127.65,127.62,25.47760229]
[1742219937109,0.063,127.65,127.62,7.66]
[1742219937723,0.063,127.65,127.62,25.47760229]
[1742219938329,0.063,127.65,127.63,25.65270229]
[1742219938531,0.063,127.65,127.63,7.8351]
[1742219941638,0.063,127.65,127.64,17.81760229]
[1742219942339,0.063,127.65,127.64,25.65210229]
[1742219942518,4.613e-05,127.67,127.64,64.17237429]
[1742219942721,4.613e-05,127.67,127.66,17.81760229]
[1742219942921,4.613e-05,127.67,127.66,25.47760229]
[1742219943637,4.613e-05,127.67,127.66,7.66]
[1742219943933,4.613e-05,127.67,127.64,7.8345]
[1742219944335,4.613e-05,127.67,127.64,25.65210229]
[1742219945430,17.81764842,127.67,127.63,15.4949]
[1742219945926,17.81764842,127.67,127.63,7.66]
[1742219945927,17.81760229,127.66,127.63,7.66]
[1742219946443,25.65250229,127.64,127.59,15.5273]
[1742219946619,17.81760229,127.62,127.59,15.5273]
[1742219946820,17.81760229,127.62,127.59,7.69]
[1742219947120,7.8349,127.64,127.59,0.03]
[1742219947121,17.81760229,127.61,127.59,0.03]
[1742219947329,7.97706157,127.64,127.59,0.03]
[1742219947330,17.81760229,127.62,127.59,0.03]
[1742219948334,7.83294613,127.67,127.61,7.8363]
[1742219948528,17.81760229,127.66,127.61,25.65390229]
[1742219948728,17.81760229,127.66,127.61,33.31390229]
[1742219949230,28.50353529,127.65,127.61,15.4963]
[1742219949633,28.50353529,127.65,127.61,7.66]
[1742219949956,28.50353529,127.65,127.61,15.4962]
[1742219950438,28.50353529,127.66,127.61,43.99973529]
[1742219950654,4.613e-05,127.67,127.62,28.50353529]
[1742219950836,28.50358142,127.67,127.62,28.50353529]
[1742219951746,28.50353529,127.66,127.62,7.8352]
[1742219952147,28.50358142,127.67,127.62,36.33873529]
[1742219952534,4.613e-05,127.67,127.63,28.50353529]
[1742219953024,4.613e-05,127.67,127.62,7.8352]
[1742219953025,36.33628142,127.67,127.62,7.8352]
[1742219953227,28.50353529,127.66,127.62,7.8352]
[1742219953433,28.50353529,127.65,127.61,15.4963]
[1742219955447,28.50353529,127.66,127.61,15.4963]
[1742219956346,28.50353529,127.66,127.61,43.99983529]
[1742219957350,4.613e-05,127.67,127.62,28.50353529]
[1742219957525,4.613e-05,127.67,127.64,28.50353529]
[1742219958343,4.613e-05,127.67,127.61,115.8872]
[1742219958344,4.613e-05,127.67,127.65,15.4939]
[1742219958544,4.613e-05,127.67,127.66,36.16353529]
[1742219959354,4.613e-05,127.67,127.66,43.95613529]
[1742219960448,4.613e-05,127.67,127.66,51.78943529]
[1742219960753,4.613e-05,127.67,127.66,23.2859]
[1742219960937,4.613e-05,127.67,127.66,17.0009]
[1742219961341,4.613e-05,127.67,127.66,45.50443529]
[1742219963856,4.613e-05,127.67,127.66,126.30443529]
[1742219965455,4.613e-05,127.67,127.66,80.8]
[1742219966735,4.613e-05,127.67,127.64,15.4943]
[1742219966736,4.613e-05,127.67,127.64,7.66]
[1742219966936,4.613e-05,127.67,127.63,7.835]
[1742219967135,28.50358142,127.67,127.63,15.495]
[1742219967676,28.50358142,127.67,127.63,7.835]
[1742219968232,4.613e-05,127.67,127.63,36.33853529]
[1742219968438,28.50358142,127.67,127.63,7.835]
[1742219968947,4.613e-05,127.67,127.63,36.33853529]
[1742219969359,4.613e-05,127.67,127.64,28.50353529]
[1742219971552,4.613e-05,127.67,127.65,7.8339]
[1742219971958,4.613e-05,127.67,127.63,7.8351]
[1742219971959,28.50358142,127.67,127.63,7.8351]
[1742219972557,28.50353529,127.66,127.63,7.8351]
[1742219972754,4.613e-05,127.67,127.63,36.33863529]
[1742219973364,4.613e-05,127.67,127.63,25.64375166]
[1742219973742,4.613e-05,127.67,127.63,45.23155166]
[1742219974145,4.613e-05,127.67,127.64,17.80865166]
[1742219975360,4.613e-05,127.67,127.66,7.8333]
[1742219975568,4.613e-05,127.67,127.66,33.28195166]
[1742219975764,4.613e-05,127.67,127.66,15.4733]
[1742219976761,4.613e-05,127.67,127.66,7.64]
[1742219978559,17.80869779,127.67,127.66,7.64]
[1742219980767,17.80869779,127.67,127.64,7.8344]
[1742219982375,17.80865166,127.65,127.63,7.64]
[1742219984365,7.83314613,127.67,127.61,0.03]
[1742219984366,17.80865166,127.64,127.61,0.03]
[1742219984573,17.80865166,127.62,127.61,0.03]
[1742219985276,0.28432314,127.65,127.61,0.03]
[1742219985475,38.0929748,127.62,127.61,0.03]
[1742219987075,81.37379846,127.62,127.59,0.03]
[1742219987263,17.80865166,127.6,127.59,0.03]
[1742219987459,25.9298748,127.6,127.59,0.03]
[1742219987670,27.5248748,127.6,127.59,0.03]
[1742219987863,46.4588468,127.6,127.59,0.03]
[1742219988048,46.4588468,127.6,127.58,0.063]
[1742219988049,18.933972,127.59,127.58,0.063]
[1742219988255,36.74262366,127.59,127.58,0.063]
[1742219989457,44.8645468,127.59,127.58,0.063]
[1742219989661,52.5045468,127.59,127.58,0.063]
[1742219990386,52.5045468,127.59,127.57,0.063]
[1742219990567,36.74262366,127.58,127.57,0.063]
[1742219991688,44.58082366,127.58,127.57,0.063]
[1742219991864,36.74262366,127.58,127.57,0.063]
[1742219992991,44.58082366,127.58,127.57,0.063]
[1742219993885,44.8651468,127.58,127.57,0.063]
[1742219998395,19.21829514,127.57,127.56,0.03]
[1742219998575,37.0269468,127.57,127.56,0.03]
[1742219999891,44.8657468,127.57,127.56,0.03]
[1742220000308,88.60649846,127.57,127.51,0.063]
[1742220000463,18.0929748,127.52,127.51,0.063]
[1742220000666,18.0929748,127.52,127.46,0.03]
[1742220000667,20.0,127.48,127.46,0.03]
[1742220000896,0.28432314,127.5,127.46,0.03]
[1742220001198,17.80865166,127.49,127.46,0.03]
[1742220001400,20.0,127.5,127.46,7.8755]
[1742220001569,17.80865166,127.48,127.46,0.03]
[1742220001775,17.80865166,127.47,127.46,0.03]
[1742220001973,0.28432314,127.49,127.46,0.03]
[1742220001974,17.80865166,127.48,127.46,0.03]
[1742220002171,20.0,127.5,127.46,0.03]
[1742220002389,20.0,127.5,127.46,17.83865166]
[1742220002795,0.14216157,127.52,127.47,17.80865166]
[1742220002796,17.80865166,127.52,127.47,17.80865166]
[1742220003096,7.8409,127.54,127.48,7.64]
[1742220003097,17.80865166,127.51,127.48,7.64]
[1742220003268,17.80865166,127.49,127.46,0.03]
[1742220003671,20.0,127.5,127.46,0.03]
[1742220003894,17.80865166,127.52,127.48,7.8443]
[1742220004061,0.14216157,127.54,127.49,17.80865166]
[1742220004390,37.80865166,127.54,127.49,17.80865166]
[1742220004882,17.80865166,127.53,127.48,45.26385166]
[1742220005090,17.80865166,127.51,127.49,7.64]
[1742220005296,17.80865166,127.51,127.47,7.8447]
[1742220005462,17.80865166,127.49,127.46,15.5153]
[1742220005665,17.80865166,127.5,127.46,15.5153]
[1742220005870,17.80865166,127.48,127.46,0.03]
[1742220006074,17.80865166,127.49,127.46,0.03]
[1742220006685,17.80865166,127.5,127.46,0.03]
[1742220007068,20.0,127.49,127.46,0.03]
[1742220007596,37.80865166,127.49,127.46,0.03]
[1742220008070,17.80865166,127.5,127.46,0.03]
[1742220009194,20.063,127.51,127.46,17.83865166]
[1742220009377,0.063,127.51,127.46,17.83865166]
[1742220009583,0.063,127.51,127.47,17.80865166]
[1742220010080,0.063,127.51,127.48,7.8443]
[1742220010276,17.80865166,127.5,127.46,0.03]
[1742220010484,17.80865166,127.49,127.46,0.03]
[1742220010691,0.34732314,127.51,127.46,7.8755]
[1742220010692,17.80865166,127.5,127.46,7.8755]
[1742220011402,17.87165166,127.51,127.46,25.68415166]
[1742220011705,17.80865166,127.5,127.46,7.8755]
[1742220012104,0.34732314,127.51,127.46,7.8755]
[1742220012306,20.063,127.51,127.46,25.68415166]
[1742220012496,0.063,127.51,127.47,17.80865166]
[1742220012680,0.063,127.51,127.49,17.80865166]
[1742220014007,0.063,127.51,127.5,17.80865166]
[1742220014192,0.063,127.51,127.5,25.65175166]
[1742220014511,0.063,127.51,127.5,31.86835166]
[1742220014815,0.0001,127.51,127.5,51.0866468]
[1742220015104,0.0001,127.51,127.5,31.86835166]
[1742220015503,0.0001,127.51,127.5,343.86835166]
[1742220016610,0.0001,127.51,127.48,25.44865166]
[1742220016813,0.0001,127.51,127.49,17.80865166]
[1742220017017,0.0001,127.51,127.5,17.80865166]
[1742220017491,0.0001,127.51,127.49,17.80865166]
[1742220018306,0.0001,127.51,127.5,7.8431]
[1742220018504,0.0001,127.51,127.49,7.8436]
[1742220018709,0.0001,127.51,127.47,32.23935166]
[1742220018892,17.80875166,127.51,127.47,14.4307]
[1742220019096,17.80875166,127.51,127.46,26.99265166]
[1742220019097,17.80875166,127.51,127.46,17.0294]
[1742220019415,17.80865166,127.5,127.46,7.67]
[1742220019699,17.80875166,127.51,127.46,15.5155]
[1742220020491,25.65135166,127.51,127.46,15.5155]
[1742220020685,17.80865166,127.5,127.46,15.5155]
[1742220020916,17.80865166,127.5,127.46,0.03]
[1742220020917,17.80865166,127.48,127.46,0.03]
[1742220021087,17.80865166,127.47,127.46,0.03]
[1742220021282,0.14216157,127.5,127.46,0.03]
[1742220021489,17.80865166,127.48,127.46,0.03]
[1742220022095,37.80865166,127.48,127.46,0.03]
[1742220022299,7.98486157,127.51,127.46,0.03]
[1742220022509,17.80865166,127.5,127.46,0.03]
[1742220022808,17.80865166,127.49,127.46,0.03]
[1742220023400,17.80865166,127.48,127.46,0.03]
[1742220025007,25.65305166,127.48,127.46,0.03]
[1742220025315,17.80865166,127.48,127.46,0.03]
[1742220025516,37.80865166,127.47,127.46,0.03]
[1742220026188,20.0,127.47,127.46,0.03]
[1742220026388,37.80865166,127.47,127.46,0.03]
[1742220027007,45.9378748,127.47,127.46,0.03]
[1742220027210,38.0929748,127.47,127.46,0.03]
[1742220028252,66.4934468,127.47,127.46,0.03]
[1742220029245,21.6216,127.47,127.46,0.03]
[1742220029451,20.0,127.47,127.46,0.03]
[1742220029632,14.1094,127.49,127.46,0.03]
[1742220029829,17.80865166,127.48,127.46,0.03]
[1742220030525,18.0929748,127.47,127.46,0.03]
[1742220030853,25.9378748,127.47,127.46,0.03]
[1742220031224,44.8718468,127.47,127.46,0.03]
[1742220032152,19.21829514,127.46,127.45,0.03]
[1742220032356,43.2098468,127.46,127.45,0.03]
[1742220033053,51.0553468,127.46,127.45,0.03]
[1742220033260,43.2098468,127.46,127.45,0.03]
[1742220033631,51.0553468,127.46,127.45,0.03]
[1742220038860,20.0,127.42,127.37,25.44865166]
[1742220039039,17.80865166,127.41,127.36,17.80865166]
[1742220039245,17.80865166,127.41,127.36,25.44865166]
[1742220039755,20.0,127.41,127.36,25.44865166]
[1742220039962,20.0,127.41,127.37,17.80865166]
[1742220040146,7.92432314,127.44,127.37,17.80865166]
[1742220040335,17.80865166,127.43,127.38,17.80865166]
[1742220040759,25.65665166,127.43,127.38,17.80865166]
[1742220041058,0.28432314,127.44,127.38,17.80865166]
[1742220041360,17.80865166,127.43,127.38,17.80865166]
[1742220041737,25.79781323,127.44,127.38,17.80865166]
[1742220042029,17.80865166,127.42,127.37,7.64]
[1742220042240,17.80865166,127.4,127.35,33.17635166]
[1742220042434,0.14216157,127.4,127.35,33.17635166]
[1742220042862,17.80865166,127.4,127.35,41.02855166]
[1742220043062,0.14216157,127.4,127.35,41.02855166]
[1742220043241,17.95081323,127.4,127.35,41.02855166]
[1742220043881,17.95081323,127.4,127.35,15.5799]
[1742220044159,17.95081323,127.4,127.35,33.41855166]
[1742220044671,17.80865166,127.41,127.35,33.41855166]
[1742220044845,0.14216157,127.42,127.37,25.65975166]
[1742220045043,17.95081323,127.42,127.37,25.65975166]
[1742220045245,17.80865166,127.41,127.36,7.8514]
[1742220045442,17.80865166,127.4,127.35,327.6098]
[1742220045663,0.14216157,127.4,127.35,33.41845166]
[1742220045861,17.80865166,127.4,127.35,33.41845166]
[1742220046056,17.80865166,127.39,127.35,15.6098]
[1742220046351,17.80865166,127.38,127.35,7.7577]
[1742220046867,17.80865166,127.37,127.35,0.03]
[1742220047759,17.80865166,127.36,127.35,0.03]
[1742220047956,7.99216157,127.39,127.35,0.03]
[1742220047957,17.80865166,127.37,127.35,0.03]
[1742220050664,7.99216157,127.39,127.35,0.03]
[1742220050868,17.80865166,127.36,127.35,0.03]
[1742220051465,17.95081323,127.36,127.35,0.03]
[1742220053882,17.80865166,127.36,127.35,0.03]
[1742220054164,17.80865166,127.37,127.35,0.03]
[1742220054756,17.95081323,127.38,127.35,0.03]
[1742220055252,17.80865166,127.37,127.35,0.03]
[1742220055771,0.14216157,127.38,127.35,0.03]
[1742220055966,17.80865166,127.37,127.35,0.03]
[1742220057176,17.80865166,127.37,127.35,7.8823]
[1742220057856,0.14216157,127.38,127.35,7.8823]
[1742220058155,17.80865166,127.37,127.35,7.8823]
[1742220058871,17.80865166,127.39,127.35,7.8823]
[1742220059168,17.80865166,127.4,127.35,46.87315166]
[1742220059376,207.86216157,127.43,127.36,17.80865166]
[1742220059557,17.80865166,127.42,127.37,17.80865166]
[1742220059879,17.80865166,127.4,127.38,7.64]
[1742220060367,17.80865166,127.39,127.38,7.64]
[1742220060569,17.80865166,127.4,127.38,7.64]
[1742220061069,17.80865166,127.39,127.35,17.0736]
[1742220061494,17.80865166,127.38,127.35,17.0736]
[1742220062582,17.80865166,127.39,127.35,17.0736]
[1742220062787,17.80865166,127.39,127.35,36.7045]
[1742220062958,17.80865166,127.38,127.35,17.0736]
[1742220063161,17.80865166,127.38,127.35,15.5223]
[1742220064087,17.80865166,127.39,127.35,15.5223]
[1742220064791,17.80865166,127.38,127.35,15.5223]
[1742220065093,0.14216157,127.4,127.35,15.5223]
[1742220065378,17.80865166,127.39,127.35,15.5223]
[1742220065575,17.80865166,127.38,127.35,15.5223]
[1742220065755,17.80865166,127.37,127.35,7.67]
[1742220065965,17.80865166,127.36,127.35,0.03]
[1742220066482,25.80251323,127.36,127.35,0.03]
[1742220067060,25.9446748,127.36,127.35,0.03]
[1742220068176,8.13602314,127.36,127.35,0.03]
[1742220068372,0.14216157,127.36,127.35,0.03]
[1742220068561,17.95081323,127.36,127.35,0.03]
[1742220070481,25.9446748,127.36,127.35,0.03]
[1742220070864,44.8786468,127.36,127.35,0.03]
[1742220071571,52.5186468,127.36,127.35,0.03]